Cogmind - Beta 16 @@@ ROGUE MODE // 2025.10.22 @ 14:42:48 Player: DrZettl Result: Destroyed by NU-12V(R) with Subdweller Machine Gun Performance ------------- Evolutions (0) 0 Regions Visited (3) 600 Robots Destroyed (16) 80 Value Destroyed (396) 396 Prototype IDs (0) 0 Alien Tech Used (0) 0 Bonus (0) 0 TOTAL SCORE: 1076 Bonus ------- None Cogmind --------- Core Integrity 0/250 Matter 290/300 Energy 125/125 System Corruption 0% Temperature Cool (0) Movement Walking (120) Location -10/Subcaves Parts ------- > --- POWER (1) -------- Light Ion Engine > --- PROPULSION (2) --- Aluminum Leg Aluminum Leg > --- UTILITY (2) ------ Small Storage Unit Targeting Computer > --- WEAPON (2) ------- Beam Rifle Battle Cannon > --- INVENTORY (8) ---- Aluminum Leg Subdweller Optics Light Armor Plating Scrap Shield Medium Laser Grenade Launcher Scrap Shield Fragment (47) Peak State ------------ > --- POWER ------------ Light Ion Engine > --- PROPULSION ------- Aluminum Leg Aluminum Leg > --- UTILITY ---------- Small Storage Unit Targeting Computer > --- WEAPON ----------- Beam Rifle Battle Cannon > --- INVENTORY -------- Aluminum Leg Subdweller Optics Light Armor Plating Scrap Shield Medium Laser Grenade Launcher Scrap Shield Fragment [Rating: 10] Favorites ----------- Power Ion Engine Engine Ion Engine Propulsion Aluminum Leg Leg Aluminum Leg Wheel Compact Wheel Utility Small Storage Unit Device Seismic Detector Storage Small Storage Unit Processor Targeting Computer Protection Weapon Shielding Weapon Assault Rifle Energy Gun Beam Rifle Ballistic Gun Assault Rifle Ballistic Cannon Battle Cannon Launcher Grenade Launcher Build | -11 -10 -10 -10 ------- Run | Yrd Mat Min Sub Slots Evolved . | . . . . Power . | . . . . Propulsion . | . . . . Utility . | . . . . Weapon . | . . . . Parts Attached 20 | 7 5 4 4 Power 3 | 1 . 1 1 Engine 3 | 1 . 1 1 Core . | . . . . Reactor . | . . . . Propulsion 6 | 2 2 2 . Treads . | . . . . Leg 4 | . 2 2 . Wheel 2 | 2 . . . Hover . | . . . . Flight . | . . . . Utility 5 | 1 2 1 1 Device 1 | . 1 . . Storage 1 | 1 . . . Processor 1 | . . . 1 Hackware . | . . . . Protection 2 | . 1 1 . Artifact . | . . . . Weapon 6 | 3 1 . 2 Energy Gun 2 | 1 . . 1 Energy Cannon . | . . . . Ballistic Gun 2 | 2 . . . Ballistic Cannon 1 | . . . 1 Launcher 1 | . 1 . . Special Weapon . | . . . . Impact Weapon . | . . . . Slashing Weapon . | . . . . Piercing Weapon . | . . . . Special Melee Weapon . | . . . . Unidentified Prototypes . | . . . . Parts Lost 3 | . 1 1 1 Power 2 | . . 1 1 Propulsion 1 | . 1 . . Utility . | . . . . Weapon . | . . . . Highest Loss Streak 1 | . 1 1 1 To Critical Strikes . | . . . . Average Backups 6 | 2 6 7 6 Power . | . . . . Propulsion 2 | 1 3 3 1 Utility 1 | . . 1 3 Weapon 1 | . 1 2 2 Tool/Special . | . . . . Unused Backups 6 | . 1 . 5 Power 1 | . 1 . . Propulsion 2 | . . . 2 Utility 3 | . . . 3 Weapon . | . . . . Tool/Special . | . . . . Average Slot Usage (%) 98 | . 98 98 97 Engine 13 | . 14 13 12 Leg 17 | . 4 28 28 Wheel 10 | . 22 . . Storage 14 | . 14 14 14 Processor 1 | . . . 6 Protection 11 | . 11 13 7 Energy Gun 2 | . . . 12 Ballistic Gun 23 | . 24 28 12 Launcher 1 | . 2 . . Peak Build Rating 10 | 6 7 7 10 Average Rating 7 | 5 6 6 8 On Entrance 5 | . 6 7 7 Avg Prop Armor Cover (%) . | . . . . Naked Turns . | . . . . Heaviest Build 17 | 14 16 16 17 Greatest Support 26 | 26 26 20 20 Greatest Overweight (x) 2 | 1 2 . . Average Overweight (x) . | . . . . Largest Inventory Capacity 8 | 8 8 8 8 Average Capacity 7 | 7 8 8 8 Most Carried 8 | 4 8 8 8 Average Carried 7 | 2 6 7 7 Final Capacity 8 | 8 8 8 8 Final Carried 8 | 4 8 8 8 Class Distribution -------------------- 100% | Mutant Dominant Class ---------------- Mutant | -10/Materials Mutant | -10/Mines Mutant | -10/Subcaves Resources | -11 -10 -10 -10 ----------- Run | Yrd Mat Min Sub Matter Collected 630 | 215 233 105 77 Remotely . | . . . . Salvage Created 461 | . 253 105 103 Parts 35 | . 25 7 3 Haulers Intercepted . | . . . . Recyclers Shooed . | . . . . Parts Field Recycled . | . . . . Retrieved Matter . | . . . . Parts Self-Destructed 5 | . . . 5 Prevented . | . . . . Parts Restored . | . . . . Kills | -11 -10 -10 -10 ------- Run | Yrd Mat Min Sub Combat Hostiles Destroyed 14 | . 10 2 2 Guns 9 | . 5 2 2 AOE 5 | . 5 . . Classes Destroyed 6 | . 4 1 1 Worker 1 | . 1 . . Builder 1 | . 1 . . Swarmer 5 | . 5 . . Grunt 5 | . 5 . . Sentry 2 | . . 2 . Subdweller 2 | . . . 2 Best Kill Streak 4 | . 4 2 1 Combat Bots Only 3 | . 3 2 1 Max Kills in Single Turn 2 | . 2 1 1 Gunslinging . | . . . . Exploded 2 | . 2 . . Melee . | . . . . Uniques/NPCs Destroyed . | . . . . Combat | -11 -10 -10 -10 -------- Run | Yrd Mat Min Sub Hostile Shots Fired 82 | . 25 28 29 Missed 28 | . 4 10 14 Hits 54 | . 21 18 15 Projectile 54 | . 21 18 15 Critical Strikes 2 | . . 1 1 Damage Taken 892 | . 205 275 412 Core 265 | . 44 93 128 Absorbed by Shields . | . . . . Redirected to Shielding 40 | . 23 17 . Core Remaining (%) 100 | 100 . . . Volleys Fired 37 | . 18 9 10 Largest 2 | . 2 2 2 Hottest 89 | . 40 40 89 Shots Fired 68 | . 30 18 20 Gun 60 | . 24 18 18 Cannon 2 | . . . 2 Launcher 6 | . 6 . . Special . | . . . . Kinetic 52 | . 24 18 10 Thermal 10 | . . . 10 Explosive 6 | . 6 . . Electromagnetic . | . . . . Robot Hit Streak 5 | . 5 4 5 Robot Miss Streak 2 | . 2 1 2 Penetration Max . | . . . . Secondary Targets 1 | . . 1 . Max Gunslinging Chain 1 | . . 1 . Shots Hit Robots 42 | . 16 13 13 Core Hits 29 | . 18 6 5 Critical Kills . | . . . . Critical Parts Destroyed . | . . . . Critical Strikes . | . . . . Melee Attacks . | . . . . Impact . | . . . . Slashing . | . . . . Piercing . | . . . . Sneak Attacks . | . . . . Combat Hostiles . | . . . . Follow-up Attacks . | . . . . Damage Inflicted 801 | . 500 127 174 Guns 452 | . 194 127 131 Cannons 43 | . . . 43 Explosions 306 | . 306 . . Melee . | . . . . Ramming . | . . . . Kinetic 408 | . 194 127 87 Thermal 87 | . . . 87 Explosive 306 | . 306 . . Electromagnetic . | . . . . Impact . | . . . . Slashing . | . . . . Piercing . | . . . . Highest Corruption . | . . . . Average Corruption . | . . . . Corruption Purged . | . . . . Corruption Blocked . | . . . . Overload Shots . | . . . . Overflow Damage 5 | . 5 . . Projectiles . | . . . . Explosions 5 | . 5 . . Melee . | . . . . Knockbacks 3 | . . . 3 Impact . | . . . . Kinetic 2 | . . . 2 Secondary 1 | . . . 1 Self-Inflicted Damage . | . . . . Shots . | . . . . Rammed . | . . . . Targets Rammed . | . . . . Kicked . | . . . . Crushed . | . . . . Highest Temperature 16 | . 6 16 11 Average Temperature 6 | . 6 9 5 Received Heat Transfer 222 | . 66 81 75 Siege Activations . | . . . . Martial Activations . | . . . . Shielding Activations . | . . . . Robots Disrupted . | . . . . Combat Hostiles . | . . . . Robots Corrupted . | . . . . Combat Hostiles . | . . . . Parts Fried . | . . . . Impact Corruptions . | . . . . Robots Melted . | . . . . Combat Hostiles . | . . . . Parts Melted 2 | . . . 2 Heat Transferred 222 | . . . 222 Parts Sabotaged . | . . . . Parts Stolen . | . . . . Parts Stripped . | . . . . Power Chain Reactions . | . . . . Alert | -11 -10 -10 -10 ------- Run | Yrd Mat Min Sub Maximum Alert Level . | . . . . Low Security (%) 100 | 100 100 100 . Level 1 . | . . . . Level 2 . | . . . . Level 3 . | . . . . Level 4 . | . . . . Level 5 . | . . . . High Security . | . . . . Max Security . | . . . . Peak Influence 199 | . 199 61 . Initial 61 | . . 61 . Average 58 | . 96 21 . Influence Increases 343 | . 303 40 . Destroy 0b10 Robot/C 240 | . 200 40 . Destroy 0b10 Robot/NC 10 | . 10 . . Destroy Leader 30 | . 30 . . Successful Hack 16 | . 16 . . Destroy Structure 32 | . 32 . . Lose Combat Pursuer 15 | . 15 . . Influence Decreases 343 | . 144 199 . Entered New Map 98 | . . 98 . Time Decay 235 | . 134 101 . Lost Part 10 | . 10 . . Squads Dispatched 2 | . 2 . . Investigation 1 | . 1 . . Extermination . | . . . . Reinforcement 1 | . 1 . . Assault . | . . . . Garrison . | . . . . Intercept . | . . . . Searches Triggered . | . . . . Construction Impeded . | . . . . Haulers Reinforced . | . . . . Active Scanning Responses . | . . . . Cargo Convoy Interrupts . | . . . . Stealth | -11 -10 -10 -10 --------- Run | Yrd Mat Min Sub Distress Signals 1 | . 1 . . Communications Jammed . | . . . . Distress Signals . | . . . . Times Spotted 26 | . 13 2 11 Peak Tracking Total 5 | . 4 2 5 Tactical Retreats 1 | . 1 . . Traps | -11 -10 -10 -10 ------- Run | Yrd Mat Min Sub Traps Triggered 4 | . 3 . 1 Indirectly . | . . . . Trap Hack Attempts . | . . . . Triggered . | . . . . Disarmed . | . . . . Reprogrammed . | . . . . Reused . | . . . . Traps Extracted . | . . . . Installed . | . . . . Triggered . | . . . . Machines | -11 -10 -10 -10 ---------- Run | Yrd Mat Min Sub Machines Disabled . | . . . . Max in Single Turn . | . . . . Machines Repaired . | . . . . Machines Dismantled . | . . . . Machines Sabotaged . | . . . . Overloaded Fab Kills . | . . . . Hacking | -11 -10 -10 -10 --------- Run | Yrd Mat Min Sub Machines Accessed 5 | . 5 . . Terminals 4 | . 4 . . Fabricators . | . . . . Repair Stations . | . . . . Recycling Units 1 | . 1 . . Scanalyzers . | . . . . Garrison Access . | . . . . Total Hacks 12 | . 12 . . Successful 8 | . 8 . . Failed 3 | . 3 . . Catastrophic . | . . . . Database Lockouts 1 | . 1 . . Manual 12 | . 12 . . Terminals 10 | . 10 . . Fabricators . | . . . . Repair Stations . | . . . . Recycling Units 2 | . 2 . . Scanalyzers . | . . . . Garrison Access . | . . . . Terminal Hacks 4 | . 4 . . Record 1 | . 1 . . Robot Analysis 1 | . 1 . . Locate Traps 1 | . 1 . . Zone Layout 1 | . 1 . . Fabricator Hacks . | . . . . Repair Station Hacks . | . . . . Recycling Unit Hacks 1 | . 1 . . Report Inventory 1 | . 1 . . Scanalyzer . | . . . . Garrison Access Hacks . | . . . . Unauthorized Hacks 3 | . 3 . . Terminals 2 | . 2 . . Botnet 2 | . 2 . . Fabricators . | . . . . Repair Stations . | . . . . Recycling Units 1 | . 1 . . Monitor 1 | . 1 . . Scanalyzers . | . . . . Garrison Access . | . . . . Data Cores Recovered . | . . . . Used . | . . . . Hacking Detections 4 | . 4 . . Full Trace Events 1 | . 1 . . Feedback Events . | . . . . Feedback Blocked . | . . . . Robot Schematics Acquired . | . . . . Robots Built . | . . . . Authchips . | . . . . Time . | . . . . Total Robot Build Rating . | . . . . Part Schematics Acquired . | . . . . Parts Built . | . . . . Authchips . | . . . . Time . | . . . . Total Part Build Rating . | . . . . Part Studies Acquired . | . . . . Parts Repaired . | . . . . Time . | . . . . Parts Recycled . | . . . . Recycled Matter . | . . . . Retrieved Matter . | . . . . Retrieved Components . | . . . . Parts Scanalyzed . | . . . . Part Schematics Acquired . | . . . . Parts Damaged . | . . . . Bothacking | -11 -10 -10 -10 ------------ Run | Yrd Mat Min Sub Used RIF Installer . | . . . . Robots Hacked . | . . . . Non-combat . | . . . . Combat . | . . . . Robot Hacks Applied . | . . . . Relay Couplers Released . | . . . . Fabnet Peak Effective % . | . . . . Robots Rewired . | . . . . Allies Hacked . | . . . . Hacks Repelled . | . . . . Allies | -11 -10 -10 -10 -------- Run | Yrd Mat Min Sub Total Allies . | . . . . Largest Group . | . . . . Highest-Rated Group . | . . . . Highest-Rated Ally . | . . . . Total Orders . | . . . . Ally Attacks . | . . . . Total Damage . | . . . . Kills . | . . . . Allies Corrupted . | . . . . Allies Melted . | . . . . Intel | -11 -10 -10 -10 ------- Run | Yrd Mat Min Sub Active Infowar (turns) 55 | . 55 . . Seismic 55 | . 55 . . Robot Analysis Total 1 | . 1 . . Derelict Logs Recovered . | . . . . Drone Launches . | . . . . Drone Recoveries . | . . . . Exploration | -11 -10 -10 -10 ------------- Run | Yrd Mat Min Sub Turns Passed 894 | 70 386 277 161 Spaces Moved 659 | 63 315 197 84 Core 5 | 4 1 . . Treads . | . . . . Legs 332 | . 51 197 84 Wheels 322 | 59 263 . . Hover . | . . . . Flight . | . . . . Fastest Speed 50 | 50 90 120 120 Average Speed 105 | 88 95 120 120 Slowest Speed 190 | 100 190 120 120 Overloaded Moves . | . . . . Propulsion Burnouts . | . . . . Robots Hopped . | . . . . Potential Cave-ins . | . . . . Cave-ins Triggered . | . . . . Exploration Rate (%) 26 | 4 54 42 7 Regions Visited 3 Branch Regions 2 Pre-discovered Areas 1 | . . 1 . Known Exits Taken . | . . . . Unknown Exits Taken 3 | 1 1 1 . Scrap Searched . | . . . . Spaces Dug . | . . . . Terrain Destroyed 39 | . 39 . . Melee . | . . . . Projectile . | . . . . AOE 39 | . 39 . . Terrain Rammed . | . . . . Walls Destroyed . | . . . . Machines Disabled . | . . . . Actions | -11 -10 -10 -10 --------- Run | Yrd Mat Min Sub Total 789 | 73 367 222 127 Wait 41 | . 14 6 21 Move 656 | 62 314 196 84 Hop . | . . . . Pick Up 15 | 4 4 4 3 Fast Attach 17 | 6 9 . 2 Attach 3 | . . 2 1 Detach 1 | . 1 . . Swap 9 | 1 5 2 1 Drop 10 | . 2 3 5 Fire 37 | . 18 9 10 Melee . | . . . . Ram . | . . . . Kick . | . . . . Crush . | . . . . Escape Stasis . | . . . . Rewire . | . . . . Trap . | . . . . Miscellaneous . | . . . . Route ------- -11/Scrapyard -10/Materials (discovered 2 exits: [*Mat] / [*Min]) -10/Mines (discovered 2 exits: [*Mat] / [*Sub]) -10/Subcaves History --------- Turn | Location | Event 14 | -11/Scrapyard | Discovered new exit (range 16) 71 | -11/Scrapyard | Entered Materials 221 | -10/Materials | Discovered new exit (range 11) 231 | -10/Materials | Central database locked down 301 | -10/Materials | Build established: Mutant 406 | -10/Materials | Discovered new exit (range 15) 457 | -10/Materials | Entered Mines 474 | -10/Mines | Found a hidden stash of uninstalled traps 502 | -10/Mines | Discovered new exit (range 13) 562 | -10/Mines | Learned location of Storage (-7) 624 | -10/Mines | Core integrity fell below 50% 727 | -10/Mines | Discovered new exit (range 6) 734 | -10/Mines | Entered Subcaves 735 | -10/Subcaves | Approached by a straggling Scientist 852 | -10/Subcaves | Core integrity fell below 20% 853 | -10/Subcaves | Shifting Twisted Machinery released Battle Cannon 863 | -10/Subcaves | Ambushed by swarm of Subdwellers 895 | -10/Subcaves | Destroyed by NU-12V(R) with Subdweller Machine Gun Last Messages --------------- 00859_ Dropped Lgt. Assault Rifle. 00860_ Acquired Battle Cannon. 00863_ UW-BXM(h): "The Subs are coming!" 00867_ Acquired 10 matter. 00868_ WG-0BL(g): "Sorry we're late! Had another grouchy Sub to deal with. Who's the new fellow?" 00874_ UW-BXM(h) destroyed. 00881_ WG-0BL(g) destroyed. 00882_ 53-P5J(g) destroyed. 00883_ DJ-LY9(g) destroyed. 00884_ S5-WM5(R) affixes Scrap Shield Fragment to Scrap Shield. 00885_ 9P-JQ5(R) destroyed. 00885_ CM-TVQ(R) knocked back. 00885_ M8-0UZ(R) affixes Scrap Shield Fragment to Scrap Shield. 00888_ CM-TVQ(R) knocked back. 00891_ CM-TVQ(R) affixes Scrap Shield Fragment to Scrap Shield. Map ----- +----------------------------------------------------+ | ???????????????????????????????????#?####""#"#" "" | | ???????????????????????????????????""#"# "#####[ " | | ???????????????????????????????????""""" "###### " | | ???????????????????????????????????? ""#"" # " | | ??????????????????????????????????????" """"" | | ??????????????????????????????????### ??#"""" | | ??????????????????????????????????# ???# ##### | | ?????????????????????????????????## ???# "???? | | ???????????????? ?????????????#"""???# #???? | | ???????????????? ?????????????? #???#" #???? | | ????????????????? ?????????##### #???# #???? | | ?????????????????? #??????### ##### ##?### | | ??????????????????? ##???##^ ^ ## =%##?# | | ???????????????????? #### "### | | ????????????????????? [*### ! = | | ??????????????????????#R%& ##% ^ ### ! = ! | | ???????????????????????#R* ?####" #?### = # | | ???????????????????????;!R######; ##### ###### | | ???????????????????????#RR!# ; ""## ##???? | | ??????????????????????##|%%*= "## ##??? | | ??????????????????????#%|*=%[" "" ### % #??? | | ??????????????????????##[&= " ##""##?### #??? | | ??????????????????????# ! ###""#????#### | | ??????????????????????## "##""#???????# ## | | ???????????????????????## """"""""???????###? | | ????????????????????????#@" " " "##??????????## | | ????????????????????????# """ "#?????????????? | | ???????????????????????? ## ####???????????????" | | ???????????????????????# #? "#?????????????????? | | ???????????????????????# #?"##?????????????????? | | ??????????????????????? #?"???????????????????? | | ??????????????????????? ##?????????????????????? | | ??????????????????????## #??????????????????????? | | ???????????????????????# #??????????????????????? | | ???????????????????????# ???????????????????????? | | ??????????????????????? %???????????????????????? | | ??????????????????????? ???????????????????????? | | ??????????????????????? ???????????????????????? | | ??????????????????????? # ???????????????????????? | | ???????????????????????#?#???????????????????????? | | ?????????????????????????????????????????????????? | | ?????????????????????????????????????????????????? | | ?????????????????????????????????????????????????? | | ?????????????????????????????????????????????????? | | ?????????????????????????????????????????????????? | | ?????????????????????????????????????????????????? | | ?????????????????????????????????????????????????? | | ?????????????????????????????????????????????????? | | ?????????????????????????????????????????????????? | | ?????????????????????????????????????????????????? | +----------------------------------------------------+ Best States ------------- Heat Dissipation 25 Energy Generation 10 Energy Capacity 250 Matter Stores 300 Matter Capacity 300 Sight Range 16 Terrain Scan Density 10 Armor Coverage 150 Weapon Shielding 33 Evasion (%) 55 Targeting Accuracy 5 Item Schematics ----------------- None Robot Schematics ------------------ None Fabricated ------------ Nothing Repaired ---------- Nothing Studied --------- None Alien Tech Used ----------------- None Achievements -------------- None Challenges ------------ None Game ------ Seed SubdwellerSignalMachine Manual? 0 Play Time 00:19:11 Cumulative 82.9 hours Start 2025.10.22 @ 14:18:29 End 2025.10.22 @ 14:42:48 Sessions 1 Manual Loads 0 Difficulty Rogue Special Mode None Game No. 88 Rogue 88 Adventurer 0 Explorer 0 Win Type - Total 0 Types 0/0/0/0/0/0/0/0/0/0 Lore% 19 Gallery% 39 Achievement% 22 Wizard Run 0 Options --------- Layout 1 ASCII 0 Keyboard 0 Movement Numpad Keybinds 0 Fullscreen 1 Font 24/Smallcaps Map View 50x35 Zoom Use 0% Tactical HUD 1 Map Filters NONE Filters NONE Steam 1 RUN: ac88e493-9429-4c4f-af7a-b6dd0d4b1a07